[Event "*** Titled Tuesday Blitz"]
[Site "Chess.com"]
[Date "2020.05.19"]
[Round "4"]
[White "Robert_Chessmood"]
[Black "PlotnikovPavel"]
[Result "1-0"]
[WhiteElo "2896"]
[BlackElo "2479"]
[TimeControl "180+1"]
[EndTime "12:42:06 PDT"]
[Termination "Robert_Chessmood won by resignation"]

1. e4 {[%clk 0:03:00.9]} 1... e6 {[%clk 0:02:57.6]} 2. d4 {[%clk 0:03:00.7]}
2... d5 {[%clk 0:02:57.4]} 3. Nc3 {[%clk 0:03:00.3]} 3... Nf6 {[%clk 0:02:57]}
4. Bg5 {[%clk 0:02:59.8]} 4... Be7 {[%clk 0:02:57]} 5. e5 {[%clk 0:02:59.5]}
5... Ng8 {[%clk 0:02:57.1]} 6. h4 {[%clk 0:02:56.9]} 6... Bxg5 {[%clk
0:02:55.3]} 7. hxg5 {[%clk 0:02:57.8]} 7... Qxg5 {[%clk 0:02:55.5]} 8. Nh3
{[%clk 0:02:56.7]} 8... Qd8 {[%clk 0:02:44.7]} 9. Nf4 {[%clk 0:02:55.9]} 9...
Ne7 {[%clk 0:02:44]} 10. Qg4 {[%clk 0:02:55]} 10... Nf5 {[%clk 0:02:37.1]} 11.
Bd3 {[%clk 0:02:53.2]} 11... g6 {[%clk 0:02:32.1]} 12. Bxf5 {[%clk 0:02:50.1]}
12... exf5 {[%clk 0:02:32.2]} 13. Qg3 {[%clk 0:02:40.8]} 13... Be6 {[%clk
0:02:27.3]} 14. Nxe6 {[%clk 0:02:38.9]} 14... fxe6 {[%clk 0:02:27.5]} 15. Qxg6+
{[%clk 0:02:36.3]} 15... hxg6 {[%clk 0:02:28.4]} 16. Rxh8+ {[%clk 0:02:36.7]}
16... Kd7 {[%clk 0:02:29]} 17. Rxd8+ {[%clk 0:02:37.1]} 17... Kxd8 {[%clk
0:02:29.9]} 18. Ne2 {[%clk 0:02:36.4]} 18... Ke7 {[%clk 0:02:27.5]} 19. Kd2
{[%clk 0:02:34.7]} 19... Nd7 {[%clk 0:02:20.2]} 20. Rh1 {[%clk 0:02:34.8]} 20...
Nf8 {[%clk 0:02:17.5]} 21. a4 {[%clk 0:02:28.4]} 21... Kf7 {[%clk 0:02:16.5]}
22. a5 {[%clk 0:02:27.9]} 22... Rc8 {[%clk 0:02:09.8]} 23. b4 {[%clk 0:02:25.8]}
23... Kg7 {[%clk 0:02:06]} 24. Nf4 {[%clk 0:02:20.6]} 24... Re8 {[%clk
0:02:02.3]} 25. Rh3 {[%clk 0:01:58.7]} 25... Re7 {[%clk 0:01:47.1]} 26. b5
{[%clk 0:01:53.4]} 26... Nh7 {[%clk 0:01:33.4]} 27. b6 {[%clk 0:01:29.5]} 27...
axb6 {[%clk 0:01:28.8]} 28. axb6 {[%clk 0:01:30.4]} 28... Ng5 {[%clk 0:01:24.5]}
29. Rb3 {[%clk 0:01:16.4]} 29... c5 {[%clk 0:01:15]} 30. f3 {[%clk 0:01:09.3]}
30... cxd4 {[%clk 0:01:13.9]} 31. Rb4 {[%clk 0:01:06.2]} 31... Nf7 {[%clk
0:01:13]} 32. Nd3 {[%clk 0:01:05.9]} 32... Re8 {[%clk 0:00:44.4]} 33. f4 {[%clk
0:00:59.3]} 33... Rc8 {[%clk 0:00:42.3]} 34. Rxd4 {[%clk 0:00:59.3]} 34... Rc6
{[%clk 0:00:39]} 35. Rb4 {[%clk 0:00:58.8]} 35... g5 {[%clk 0:00:37.8]} 36. g3
{[%clk 0:00:57.8]} 36... gxf4 {[%clk 0:00:27.2]} 37. gxf4 {[%clk 0:00:58.7]}
37... Kf8 {[%clk 0:00:22.1]} 38. Rb5 {[%clk 0:00:58.8]} 38... Ke7 {[%clk
0:00:22]} 39. Nb4 {[%clk 0:00:53.8]} 39... Rc4 {[%clk 0:00:20.6]} 40. Nd3 {[%clk
0:00:49.4]} 40... Nd8 {[%clk 0:00:19.8]} 41. Rb1 {[%clk 0:00:44.8]} 41... Rc6
{[%clk 0:00:18.1]} 42. c3 {[%clk 0:00:39.4]} 42... Kd7 {[%clk 0:00:16.8]} 43.
Rb5 {[%clk 0:00:36.3]} 43... Kc8 {[%clk 0:00:14.9]} 44. Rb3 {[%clk 0:00:31.3]}
44... Kd7 {[%clk 0:00:14.7]} 45. Ke3 {[%clk 0:00:30.9]} 45... Rc4 {[%clk
0:00:14.3]} 46. Ne1 {[%clk 0:00:28.6]} 46... Kc6 {[%clk 0:00:12.8]} 47. Nc2
{[%clk 0:00:26.4]} 47... Kd7 {[%clk 0:00:12.1]} 48. Nd4 {[%clk 0:00:26]} 48...
Nc6 {[%clk 0:00:11.8]} 49. Nb5 {[%clk 0:00:23.2]} 49... Na5 {[%clk 0:00:11.9]}
50. Rb1 {[%clk 0:00:21]} 50... Rc5 {[%clk 0:00:11.6]} 51. Kd3 {[%clk 0:00:17.6]}
51... Nc4 {[%clk 0:00:11.2]} 52. Rb3 {[%clk 0:00:13]} 52... Nxb6 {[%clk
0:00:10.4]} 53. Nd4 {[%clk 0:00:09.3]} 53... Nc4 {[%clk 0:00:07.9]} 54. Rxb7+
{[%clk 0:00:09.4]} 54... Kc8 {[%clk 0:00:07.9]} 55. Re7 {[%clk 0:00:07.3]} 55...
Nb2+ {[%clk 0:00:07.9]} 56. Kc2 {[%clk 0:00:06.8]} 56... Na4 {[%clk 0:00:08]}
57. Nxe6 {[%clk 0:00:05]} 57... Rxc3+ {[%clk 0:00:07.8]} 58. Kd2 {[%clk
0:00:05.5]} 58... Rf3 {[%clk 0:00:07.9]} 59. Rf7 {[%clk 0:00:05.3]} 59... Nb6
{[%clk 0:00:06.4]} 60. Rxf5 {[%clk 0:00:04.2]} 60... Nc4+ {[%clk 0:00:06.8]} 61.
Ke2 {[%clk 0:00:04.6]} 61... Re3+ {[%clk 0:00:06.8]} 62. Kf2 {[%clk 0:00:04.6]}
62... Re4 {[%clk 0:00:07.1]} 63. Nc5 {[%clk 0:00:04.2]} 63... Rd4 {[%clk
0:00:06.8]} 64. Rf8+ {[%clk 0:00:03.7]} 64... Kc7 {[%clk 0:00:06.3]} 65. Ne6+
{[%clk 0:00:04.6]} 65... Kd7 {[%clk 0:00:06.7]} 66. Nxd4 {[%clk 0:00:05.5]}
66... Ke7 {[%clk 0:00:07.6]} 67. Rh8 {[%clk 0:00:05.4]} 67... Nxe5 {[%clk
0:00:08]} 68. fxe5 {[%clk 0:00:05]} 1-0

[Event "*** Titled Tuesday Blitz"]
[Site "Chess.com"]
[Date "2020.05.19"]
[Round "4"]
[White "GMKrikor"]
[Black "Sibelephant"]
[Result "0-1"]
[WhiteElo "2760"]
[BlackElo "3181"]
[TimeControl "180+1"]
[EndTime "12:42:10 PDT"]
[Termination "Sibelephant won on time"]

1. Nf3 {[%clk 0:03:00.9]} 1... Nf6 {[%clk 0:02:57.4]} 2. c4 {[%clk 0:03:00.9]}
2... c6 {[%clk 0:02:56.8]} 3. Nc3 {[%clk 0:03:00.5]} 3... d5 {[%clk 0:02:57.4]}
4. e3 {[%clk 0:03:00.9]} 4... e6 {[%clk 0:02:55.8]} 5. b3 {[%clk 0:03:00.9]}
5... Bd6 {[%clk 0:02:55.1]} 6. Bb2 {[%clk 0:03:00.8]} 6... O-O {[%clk
0:02:55.6]} 7. Qc2 {[%clk 0:03:01]} 7... e5 {[%clk 0:02:55.2]} 8. cxd5 {[%clk
0:03:00.5]} 8... cxd5 {[%clk 0:02:55.8]} 9. Nb5 {[%clk 0:03:00.5]} 9... Nc6
{[%clk 0:02:56.2]} 10. Nxd6 {[%clk 0:02:59.3]} 10... Qxd6 {[%clk 0:02:56.5]} 11.
d4 {[%clk 0:02:59.9]} 11... e4 {[%clk 0:02:49.1]} 12. Ne5 {[%clk 0:02:59.3]}
12... Nb4 {[%clk 0:02:49.4]} 13. Qd2 {[%clk 0:02:44.9]} 13... Bf5 {[%clk
0:02:44]} 14. a3 {[%clk 0:02:38.9]} 14... Na6 {[%clk 0:02:42.2]} 15. Be2 {[%clk
0:02:21]} 15... Ne8 {[%clk 0:02:21.4]} 16. h3 {[%clk 0:02:13.5]} 16... f6 {[%clk
0:02:17.1]} 17. Ng4 {[%clk 0:02:13.2]} 17... Qb6 {[%clk 0:02:03.7]} 18. O-O
{[%clk 0:01:49.2]} 18... Nd6 {[%clk 0:02:03]} 19. Bc3 {[%clk 0:01:29.5]} 19...
Rfc8 {[%clk 0:01:56.1]} 20. Rab1 {[%clk 0:01:21.2]} 20... Qc6 {[%clk 0:01:25.1]}
21. Rfc1 {[%clk 0:01:20.2]} 21... Qd7 {[%clk 0:01:25.4]} 22. Nh2 {[%clk
0:01:15]} 22... Rc6 {[%clk 0:01:17.4]} 23. Nf1 {[%clk 0:01:10.7]} 23... Rac8
{[%clk 0:01:15.3]} 24. Bb2 {[%clk 0:01:08.8]} 24... Be6 {[%clk 0:01:06.8]} 25.
Rxc6 {[%clk 0:01:05.4]} 25... Rxc6 {[%clk 0:01:06.6]} 26. Rc1 {[%clk 0:01:05.5]}
26... Rb6 {[%clk 0:01:04.9]} 27. Bd1 {[%clk 0:00:58.9]} 27... Rc6 {[%clk
0:00:48.5]} 28. Ng3 {[%clk 0:00:56.7]} 28... Nb8 {[%clk 0:00:44.4]} 29. Ne2
{[%clk 0:00:56.6]} 29... Bf7 {[%clk 0:00:39.5]} 30. a4 {[%clk 0:00:49.3]} 30...
Rxc1 {[%clk 0:00:37.3]} 31. Qxc1 {[%clk 0:00:48.7]} 31... Nc6 {[%clk 0:00:38]}
32. Ba3 {[%clk 0:00:48.5]} 32... b6 {[%clk 0:00:29.3]} 33. Qc3 {[%clk
0:00:40.1]} 33... h5 {[%clk 0:00:22.9]} 34. Nf4 {[%clk 0:00:40.3]} 34... h4
{[%clk 0:00:22.8]} 35. Bg4 {[%clk 0:00:40.4]} 35... f5 {[%clk 0:00:22.9]} 36.
Be2 {[%clk 0:00:33.1]} 36... Kh7 {[%clk 0:00:19.8]} 37. Ba6 {[%clk 0:00:22.2]}
37... g5 {[%clk 0:00:12.6]} 38. Ne2 {[%clk 0:00:22.2]} 38... Nb8 {[%clk
0:00:13]} 39. Bxd6 {[%clk 0:00:22.2]} 39... Qxd6 {[%clk 0:00:12.2]} 40. Bb7
{[%clk 0:00:20.1]} 40... Be6 {[%clk 0:00:08.4]} 41. Bc8 {[%clk 0:00:17.6]} 41...
Nc6 {[%clk 0:00:08.6]} 42. Bxe6 {[%clk 0:00:14.6]} 42... Qxe6 {[%clk 0:00:09]}
43. b4 {[%clk 0:00:09.9]} 43... Qd6 {[%clk 0:00:09.6]} 44. b5 {[%clk 0:00:10.3]}
44... Ne7 {[%clk 0:00:10.2]} 45. Nc1 {[%clk 0:00:09.4]} 45... f4 {[%clk
0:00:10]} 46. Nb3 {[%clk 0:00:07.1]} 46... Kg6 {[%clk 0:00:04.2]} 47. Nd2 {[%clk
0:00:06]} 47... Nf5 {[%clk 0:00:04.5]} 48. Qc8 {[%clk 0:00:03.8]} 48... fxe3
{[%clk 0:00:03.7]} 49. Qe8+ {[%clk 0:00:04.1]} 49... Kg7 {[%clk 0:00:02.5]} 50.
fxe3 {[%clk 0:00:02.9]} 50... Nxe3 {[%clk 0:00:02.8]} 51. Qc8 {[%clk 0:00:01.9]}
51... Qf6 {[%clk 0:00:02.9]} 52. Kh2 {[%clk 0:00:01.3]} 52... Qf4+ {[%clk
0:00:02.4]} 53. Kg1 {[%clk 0:00:01.9]} 53... Qf6 {[%clk 0:00:03.1]} 54. Kh2
{[%clk 0:00:01.8]} 54... Nf5 {[%clk 0:00:03.5]} 55. Qd7+ {[%clk 0:00:01.9]}
55... Ne7 {[%clk 0:00:03.6]} 56. Kg1 {[%clk 0:00:02.4]} 56... Qxd4+ {[%clk
0:00:02.9]} 57. Kh1 {[%clk 0:00:02.2]} 57... Kf6 {[%clk 0:00:03.4]} 58. Nf1
{[%clk 0:00:02.2]} 58... Qe5 {[%clk 0:00:03.3]} 59. Nh2 {[%clk 0:00:02.3]} 59...
Qe6 {[%clk 0:00:03.6]} 60. Ng4+ {[%clk 0:00:02.6]} 60... Kf7 {[%clk 0:00:04.1]}
61. Qc7 {[%clk 0:00:02.3]} 61... e3 {[%clk 0:00:04.6]} 62. Ne5+ {[%clk
0:00:02.7]} 62... Kg7 {[%clk 0:00:05]} 63. Nc6 {[%clk 0:00:03.1]} 63... e2
{[%clk 0:00:05]} 64. Nxe7 {[%clk 0:00:01.7]} 64... e1=Q+ {[%clk 0:00:05.2]} 65.
Kh2 {[%clk 0:00:02.6]} 65... Qxe7 {[%clk 0:00:05.3]} 0-1

[Event "*** Titled Tuesday Blitz"]
[Site "Chess.com"]
[Date "2020.05.19"]
[Round "4"]
[White "Gerasimenyuk_Miha"]
[Black "cstevens1"]
[Result "0-1"]
[WhiteElo "2365"]
[BlackElo "2575"]
[TimeControl "180+1"]
[EndTime "12:42:11 PDT"]
[Termination "cstevens1 won by checkmate"]

1. d4 {[%clk 0:03:00.9]} 1... Nf6 {[%clk 0:02:59.7]} 2. Nf3 {[%clk 0:03:01.2]}
2... e6 {[%clk 0:02:58.8]} 3. Bg5 {[%clk 0:03:01.7]} 3... h6 {[%clk 0:02:58.4]}
4. Bf4 {[%clk 0:03:01.2]} 4... b6 {[%clk 0:02:58.5]} 5. e3 {[%clk 0:03:01.5]}
5... Bb7 {[%clk 0:02:58.8]} 6. Nbd2 {[%clk 0:03:01.7]} 6... c5 {[%clk 0:02:59]}
7. c3 {[%clk 0:03:01.7]} 7... cxd4 {[%clk 0:02:58.2]} 8. cxd4 {[%clk 0:03:01.4]}
8... d6 {[%clk 0:02:58.2]} 9. Bd3 {[%clk 0:03:00]} 9... a6 {[%clk 0:02:58]} 10.
a3 {[%clk 0:02:59.2]} 10... Nbd7 {[%clk 0:02:57.9]} 11. Qe2 {[%clk 0:02:59.1]}
11... Be7 {[%clk 0:02:56.9]} 12. h4 {[%clk 0:02:58]} 12... b5 {[%clk 0:02:53.3]}
13. Rg1 {[%clk 0:02:55.6]} 13... Nd5 {[%clk 0:02:51.9]} 14. Bh2 {[%clk 0:02:38]}
14... Rc8 {[%clk 0:02:51.4]} 15. g4 {[%clk 0:02:35.3]} 15... N5b6 {[%clk
0:02:44.8]} 16. Ne4 {[%clk 0:02:31.9]} 16... Qc7 {[%clk 0:02:13.1]} 17. Nfd2
{[%clk 0:02:26]} 17... Na4 {[%clk 0:01:59.3]} 18. Nb3 {[%clk 0:02:21.6]} 18...
Ndb6 {[%clk 0:01:15.8]} 19. Rc1 {[%clk 0:02:14.5]} 19... Qxc1+ {[%clk 0:01:06]}
20. Nxc1 {[%clk 0:02:13.5]} 20... Rxc1+ {[%clk 0:01:06.9]} 21. Kd2 {[%clk
0:02:11.9]} 21... Rxg1 {[%clk 0:01:07.8]} 22. Bxg1 {[%clk 0:02:11.5]} 22... Bxe4
{[%clk 0:01:01]} 23. Bxe4 {[%clk 0:02:09.1]} 23... Nc4+ {[%clk 0:01:01.9]} 24.
Ke1 {[%clk 0:02:03.8]} 24... d5 {[%clk 0:01:02.8]} 25. Bc2 {[%clk 0:01:44.2]}
25... Naxb2 {[%clk 0:01:02.1]} 26. Bh2 {[%clk 0:01:38.7]} 26... Bxa3 {[%clk
0:00:53]} 27. Kf1 {[%clk 0:01:33.6]} 27... O-O {[%clk 0:00:46.8]} 28. g5 {[%clk
0:01:33.1]} 28... hxg5 {[%clk 0:00:46.4]} 29. hxg5 {[%clk 0:01:31.1]} 29... g6
{[%clk 0:00:46.9]} 30. Be5 {[%clk 0:01:19.4]} 30... Nxe5 {[%clk 0:00:44.6]} 31.
dxe5 {[%clk 0:01:20.3]} 31... Nc4 {[%clk 0:00:43.5]} 32. f4 {[%clk 0:01:11.7]}
32... Bc1 {[%clk 0:00:31]} 33. e4 {[%clk 0:01:08.1]} 33... dxe4 {[%clk
0:00:30.3]} 34. Bxe4 {[%clk 0:01:05]} 34... Bxf4 {[%clk 0:00:29.5]} 35. Bb7
{[%clk 0:00:27]} 35... Bxe5 {[%clk 0:00:17]} 36. Bxa6 {[%clk 0:00:25.4]} 36...
Bf4 {[%clk 0:00:16.2]} 37. Bxb5 {[%clk 0:00:23.4]} 37... Ne3+ {[%clk 0:00:15.8]}
38. Kg1 {[%clk 0:00:21.6]} 38... Bxg5 {[%clk 0:00:16.7]} 39. Bd3 {[%clk
0:00:20.4]} 39... Kg7 {[%clk 0:00:13.4]} 40. Qb2+ {[%clk 0:00:19.9]} 40... Bf6
{[%clk 0:00:13.1]} 41. Qe2 {[%clk 0:00:18.7]} 41... Nd5 {[%clk 0:00:14]} 42. Be4
{[%clk 0:00:18.2]} 42... Rd8 {[%clk 0:00:13.2]} 43. Qf3 {[%clk 0:00:17.1]} 43...
Nc3 {[%clk 0:00:12.8]} 44. Bc6 {[%clk 0:00:15.6]} 44... Rd2 {[%clk 0:00:12.4]}
45. Be4 {[%clk 0:00:14]} 45... Ne2+ {[%clk 0:00:11.1]} 46. Kf1 {[%clk
0:00:13.4]} 46... Nd4 {[%clk 0:00:11.2]} 47. Qf4 {[%clk 0:00:11.6]} 47... Rb2
{[%clk 0:00:10.6]} 48. Bd3 {[%clk 0:00:10.7]} 48... Rb3 {[%clk 0:00:09.7]} 49.
Qe4 {[%clk 0:00:10.3]} 49... Rb4 {[%clk 0:00:08.7]} 50. Qa8 {[%clk 0:00:08.9]}
50... Rb3 {[%clk 0:00:07.4]} 51. Bc4 {[%clk 0:00:08.6]} 51... Rc3 {[%clk
0:00:07.2]} 52. Qa6 {[%clk 0:00:06.2]} 52... Nf5 {[%clk 0:00:07]} 53. Bd3 {[%clk
0:00:05.7]} 53... Rc8 {[%clk 0:00:05.7]} 54. Ke2 {[%clk 0:00:05.5]} 54... Nd4+
{[%clk 0:00:04.7]} 55. Kf1 {[%clk 0:00:05.2]} 55... Rd8 {[%clk 0:00:05.6]} 56.
Be2 {[%clk 0:00:04.9]} 56... Nf5 {[%clk 0:00:05.7]} 57. Bf3 {[%clk 0:00:04.6]}
57... Rd2 {[%clk 0:00:04.9]} 58. Be2 {[%clk 0:00:04.1]} 58... Ng3+ {[%clk
0:00:03.6]} 59. Kg2 {[%clk 0:00:04.1]} 59... Nxe2 {[%clk 0:00:03.8]} 60. Kf3
{[%clk 0:00:04.2]} 60... Rb2 {[%clk 0:00:04.7]} 61. Qa3 {[%clk 0:00:03.5]} 61...
Nd4+ {[%clk 0:00:04.5]} 62. Ke3 {[%clk 0:00:02.7]} 62... Nf5+ {[%clk 0:00:05.4]}
63. Kf3 {[%clk 0:00:02.5]} 63... Rh2 {[%clk 0:00:05.3]} 64. Qa8 {[%clk
0:00:02.2]} 64... Rh3+ {[%clk 0:00:05.3]} 65. Kg4 {[%clk 0:00:01.8]} 65... Rg3+
{[%clk 0:00:05.4]} 66. Kf4 {[%clk 0:00:02.6]} 66... Bg5+ {[%clk 0:00:03.7]} 67.
Ke4 {[%clk 0:00:02.6]} 67... Re3# {[%clk 0:00:03.7]} 0-1

[Event "*** Titled Tuesday Blitz"]
[Site "Chess.com"]
[Date "2020.05.19"]
[Round "4"]
[White "AnnaChessLook"]
[Black "Grandmaster2B"]
[Result "1-0"]
[WhiteElo "2220"]
[BlackElo "2395"]
[TimeControl "180+1"]
[EndTime "12:42:12 PDT"]
[Termination "AnnaChessLook won by resignation"]

1. d4 {[%clk 0:03:00.9]} 1... Nf6 {[%clk 0:02:59.5]} 2. c4 {[%clk 0:03:00.8]}
2... e6 {[%clk 0:02:54.6]} 3. Nf3 {[%clk 0:02:59.9]} 3... b6 {[%clk 0:02:54.7]}
4. g3 {[%clk 0:02:59.8]} 4... Ba6 {[%clk 0:02:41.1]} 5. Qc2 {[%clk 0:02:57.3]}
5... Bb7 {[%clk 0:02:40.3]} 6. Bg2 {[%clk 0:02:57.1]} 6... c5 {[%clk 0:02:40.5]}
7. d5 {[%clk 0:02:57.6]} 7... exd5 {[%clk 0:02:38.9]} 8. cxd5 {[%clk 0:02:58.5]}
8... d6 {[%clk 0:02:36.6]} 9. O-O {[%clk 0:02:59]} 9... Nbd7 {[%clk 0:02:37.5]}
10. Nc3 {[%clk 0:02:59.1]} 10... Be7 {[%clk 0:02:38.4]} 11. e4 {[%clk
0:02:59.4]} 11... O-O {[%clk 0:02:39.3]} 12. a4 {[%clk 0:02:56.5]} 12... a6
{[%clk 0:02:38.7]} 13. Bf4 {[%clk 0:02:56.6]} 13... Qc7 {[%clk 0:02:37.5]} 14.
Nd2 {[%clk 0:02:56.6]} 14... Rfe8 {[%clk 0:01:57]} 15. Nc4 {[%clk 0:02:53.9]}
15... Bf8 {[%clk 0:01:56.7]} 16. Rfe1 {[%clk 0:02:52.9]} 16... Ng4 {[%clk
0:01:55.7]} 17. Qb3 {[%clk 0:01:58.2]} 17... Rab8 {[%clk 0:01:28.6]} 18. Rad1
{[%clk 0:01:31.2]} 18... Ba8 {[%clk 0:01:16.6]} 19. h3 {[%clk 0:01:26]} 19...
Nge5 {[%clk 0:01:15.1]} 20. Nxe5 {[%clk 0:01:25.2]} 20... Nxe5 {[%clk 0:01:16]}
21. Bxe5 {[%clk 0:01:19.5]} 21... dxe5 {[%clk 0:01:10.7]} 22. Qc4 {[%clk
0:01:10]} 22... Bb7 {[%clk 0:01:04.7]} 23. b4 {[%clk 0:01:08.3]} 23... Rbc8
{[%clk 0:00:50.8]} 24. b5 {[%clk 0:01:06.1]} 24... a5 {[%clk 0:00:46.8]} 25. Nb1
{[%clk 0:01:01.2]} 25... Bd6 {[%clk 0:00:43.2]} 26. Nd2 {[%clk 0:01:00.9]} 26...
g6 {[%clk 0:00:42.7]} 27. Rc1 {[%clk 0:01:00.7]} 27... Rf8 {[%clk 0:00:41.6]}
28. g4 {[%clk 0:00:20.6]} 28... Kg7 {[%clk 0:00:36.3]} 29. Rc3 {[%clk
0:00:19.5]} 29... f6 {[%clk 0:00:26]} 30. Qe2 {[%clk 0:00:19.4]} 30... Kh8
{[%clk 0:00:20.5]} 31. Nc4 {[%clk 0:00:17.8]} 31... Rcd8 {[%clk 0:00:17.4]} 32.
Kh2 {[%clk 0:00:18.1]} 32... Rf7 {[%clk 0:00:12.9]} 33. Rg3 {[%clk 0:00:17.3]}
33... Rff8 {[%clk 0:00:08.9]} 34. Rf3 {[%clk 0:00:16.9]} 34... Be7 {[%clk
0:00:07.8]} 35. Qd2 {[%clk 0:00:16.3]} 35... Kg7 {[%clk 0:00:06.9]} 36. h4
{[%clk 0:00:15.7]} 36... Bd6 {[%clk 0:00:05.8]} 37. h5 {[%clk 0:00:15.1]} 37...
Bc8 {[%clk 0:00:05.8]} 38. h6+ {[%clk 0:00:13.4]} 38... Kg8 {[%clk 0:00:05.4]}
39. Rg3 {[%clk 0:00:13.6]} 39... Bd7 {[%clk 0:00:02.7]} 40. f3 {[%clk
0:00:13.8]} 40... Rb8 {[%clk 0:00:02]} 41. Bf1 {[%clk 0:00:13.7]} 41... Rf7
{[%clk 0:00:01.7]} 42. Qe3 {[%clk 0:00:12.8]} 42... Rff8 {[%clk 0:00:02.3]} 43.
Qd2 {[%clk 0:00:13]} 43... Kh8 {[%clk 0:00:02.6]} 44. Bd3 {[%clk 0:00:13]} 44...
Rbe8 {[%clk 0:00:02.5]} 45. Kg2 {[%clk 0:00:13.5]} 45... f5 {[%clk 0:00:02.6]}
46. gxf5 {[%clk 0:00:13.5]} 46... gxf5 {[%clk 0:00:03.5]} 47. exf5 {[%clk
0:00:13.8]} 47... Bxf5 {[%clk 0:00:01.3]} 48. Bxf5 {[%clk 0:00:14.1]} 48... Rxf5
{[%clk 0:00:01.7]} 49. Re4 {[%clk 0:00:14.2]} 49... Ref8 {[%clk 0:00:01.9]} 50.
Reg4 {[%clk 0:00:14.7]} 50... Be7 {[%clk 0:00:02.3]} 51. Rg7 {[%clk 0:00:13.8]}
51... e4 {[%clk 0:00:03.2]} 52. d6 {[%clk 0:00:13.1]} 52... Qd7 {[%clk
0:00:02.2]} 53. dxe7 {[%clk 0:00:12.7]} 53... exf3+ {[%clk 0:00:03.1]} 54. Kf1
{[%clk 0:00:12.8]} 54... Qxd2 {[%clk 0:00:01.5]} 55. Nxd2 {[%clk 0:00:13.7]}
55... Re8 {[%clk 0:00:01.4]} 56. Kf2 {[%clk 0:00:13.6]} 56... Re5 {[%clk
0:00:01.6]} 57. Rxf3 {[%clk 0:00:13.7]} 57... R5xe7 {[%clk 0:00:02.5]} 58. Rxe7
{[%clk 0:00:13.3]} 58... Rxe7 {[%clk 0:00:03.4]} 59. Re3 {[%clk 0:00:14.2]}
59... Rf7+ {[%clk 0:00:03.5]} 60. Rf3 {[%clk 0:00:15.1]} 60... Rd7 {[%clk
0:00:03.2]} 61. Nc4 {[%clk 0:00:15.6]} 61... Kg8 {[%clk 0:00:04.1]} 62. Nxb6
{[%clk 0:00:15.6]} 62... Rd4 {[%clk 0:00:03.7]} 63. Re3 {[%clk 0:00:14.6]} 63...
Kf7 {[%clk 0:00:02.9]} 64. Kf3 {[%clk 0:00:13.2]} 64... Rd6 {[%clk 0:00:02.7]}
65. Nc4 {[%clk 0:00:13]} 65... Rd4 {[%clk 0:00:03.3]} 66. Re4 {[%clk 0:00:13.4]}
66... Rd3+ {[%clk 0:00:03.4]} 67. Kf4 {[%clk 0:00:13.6]} 67... Rh3 {[%clk
0:00:02.3]} 68. Ne5+ {[%clk 0:00:14.5]} 68... Ke6 {[%clk 0:00:02.3]} 69. Ng4+
{[%clk 0:00:15.2]} 69... Kd6 {[%clk 0:00:03.2]} 70. Re5 {[%clk 0:00:15.1]} 70...
Rh4 {[%clk 0:00:02.3]} 71. Rf5 {[%clk 0:00:14.5]} 71... c4 {[%clk 0:00:02.1]}
72. Kg3 {[%clk 0:00:13.7]} 72... c3 {[%clk 0:00:01]} 73. Kxh4 {[%clk 0:00:13.2]}
73... c2 {[%clk 0:00:01.9]} 74. Rf1 {[%clk 0:00:13.7]} 74... Kc5 {[%clk
0:00:02.5]} 75. Rc1 {[%clk 0:00:14.6]} 1-0